fUST/lending_fUST_20260525
["ID","MTS","AMOUNT","RATE_DAILY","PERIOD"]
[422936801,1779653435000,-150.0,0.00016,2]
[422936797,1779653435000,-791.0,0.0001485,2]
[422936795,1779653435000,-161.73758927,0.0001445,2]
[422936794,1779653435000,-160.0,0.0001445,2]
[422936804,1779653435000,-182.986,0.00016168,2]
[422936803,1779653435000,-150.0,0.0001601,2]
[422936793,1779653435000,-160.0,0.0001445,2]
[422936791,1779653435000,-160.0,0.0001445,2]
[422936800,1779653435000,-167.0,0.00015753,3]
[422936810,1779653435000,-1000.0,0.00017968,2]
[422936814,1779653435000,-500.0,0.00018206,5]
[422936815,1779653435000,-362.3945441,0.00018953,2]
[422936811,1779653435000,-1000.0,0.00017968,2]
[422936837,1779653435000,-48622.05864765,0.00019717,30]
[422936835,1779653435000,-161.79,0.000197,2]
[422936836,1779653435000,-154.22,0.00019713,2]
[422936834,1779653435000,-1000.0,0.000197,5]
[422936827,1779653435000,-1000.0,0.0001968,5]
[422936829,1779653435000,-150.79,0.0001969,2]
[422936828,1779653435000,-178.3755,0.00019686,2]
[422936825,1779653435000,-161.73758927,0.00019641,7]
[422936821,1779653435000,-156.0,0.00019625,120]
[422936833,1779653435000,-456.7008752,0.000197,2]
[422936822,1779653435000,-1580.432803,0.0001964,5]
[422936819,1779653435000,-221.53141359,0.00019248,2]
[422936823,1779653435000,-177.55440754,0.00019641,2]
[422936831,1779653435000,-326.0270599,0.000197,2]
[422936826,1779653435000,-1000.0,0.0001966,5]
[422936830,1779653435000,-601.0,0.000197,2]
[422936817,1779653435000,-150.0,0.0001901,2]
[422936824,1779653435000,-709.50741254,0.00019641,2]
[422936820,1779653435000,-162.0,0.00019625,120]
[422936818,1779653435000,-150.0,0.0001901,2]
[422936832,1779653435000,-151.0,0.000197,2]
[422936838,1779653436000,-338.712,0.00019717,30]
[422936852,1779653438000,-312.96975484,9.862e-05,2]
[422936851,1779653438000,-500.22305158,8.219e-05,2]
[422936853,1779653438000,-244673.98133715,0.00019717,30]
[422936855,1779653438000,-1411.67443045,0.00019717,30]
[422936854,1779653438000,-780797.14351343,0.00019717,30]
[422936856,1779653438000,-1998.56975241,0.00019717,30]
[422936857,1779653438000,-425.26081084,0.00019717,30]
[422936866,1779653441000,-79.20130845,0.0001304,2]
[422936865,1779653441000,-201.47742827,0.0001104,2]
[422936864,1779653441000,-170.74358328,9.04e-05,2]
[422936885,1779653443000,-153.00996481,0.0001304,2]
[422936884,1779653443000,-312.96975484,0.00011404,2]
[422936886,1779653443000,-262.94511825,0.0001504,2]
[422936889,1779653443000,-152.0,0.00019173,7]
[422936887,1779653443000,-293.67896324,0.0001704,2]
[422936888,1779653443000,-324.41280823,0.0001904,2]
[422936892,1779653443000,-1517.29290534,0.00019717,30]
[422936890,1779653443000,-395.28339063,0.00019717,30]
[422936891,1779653443000,-509226.61391452,0.00019717,30]
[422936893,1779653443000,-9098.22,0.00019717,30]
[422936894,1779653444000,-15177.60000001,0.00019717,30]
[422936908,1779653447000,-72.85393163,0.00013047,2]
[422936909,1779653783000,-1000.0,8.055e-05,2]
[422936910,1779653802000,-1763.10572972,8.055e-05,2]
[422936911,1779653821000,-69.92465805,8.055e-05,2]
[422936912,1779653874000,-150.0,8.136e-05,2]
[422936913,1779653927000,-1200.0,8.217e-05,2]
[422936915,1779653981000,-300.0,8.217e-05,2]
[422936916,1779654034000,-300.0,8.217e-05,2]
[422936917,1779654088000,-1200.0,8.217e-05,2]
[422936919,1779654141000,-162.0,8.217e-05,2]
[422936921,1779654194000,-150.0,8.218e-05,2]
[422936923,1779654438000,-410.16718043,8.217e-05,2]
[422936926,1779654440000,-375.6209554,8.218e-05,2]
[422936925,1779654440000,-150.0,8.218e-05,2]
[422936924,1779654440000,-20.83281957,8.217e-05,2]
[422936927,1779654449000,-124.3790446,8.218e-05,2]
[422936928,1779654449000,-223.88146074,8.218e-05,2]
[422936931,1779654545000,-447.84630133,8.218e-05,2]
[422936930,1779654545000,-500.0,8.218e-05,2]
[422936929,1779654545000,-276.11853926,8.218e-05,2]
[422936938,1779654547000,-234.95893921,8.218e-05,2]
[422936937,1779654547000,-500.0,8.218e-05,2]
[422936936,1779654547000,-500.0,8.218e-05,2]
[422936935,1779654547000,-500.0,8.218e-05,2]
[422936932,1779654547000,-52.15369867,8.218e-05,2]
[422936934,1779654547000,-500.0,8.218e-05,2]
[422936933,1779654547000,-162.88736212,8.218e-05,2]
[422936948,1779654552000,-500.0,8.219e-05,2]
[422936947,1779654552000,-500.0,8.219e-05,2]
[422936945,1779654552000,-500.0,8.219e-05,2]
[422936946,1779654552000,-500.0,8.219e-05,2]
[422936943,1779654552000,-500.0,8.219e-05,2]
[422936942,1779654552000,-500.0,8.219e-05,2]
[422936941,1779654552000,-500.0,8.219e-05,2]
[422936939,1779654552000,-265.04106079,8.218e-05,2]
[422936940,1779654552000,-569.13204232,8.218e-05,2]
[422936944,1779654552000,-500.0,8.219e-05,2]
[422936949,1779654552000,-500.0,8.219e-05,2]
[422936951,1779654552000,-500.0,8.219e-05,2]
[422936952,1779654552000,-500.0,8.219e-05,2]
[422936950,1779654552000,-500.0,8.219e-05,2]
[422936962,1779654552000,-363.77939203,8.219e-05,2]
[422936960,1779654552000,-500.0,8.219e-05,2]
[422936959,1779654552000,-500.0,8.219e-05,2]
[422936958,1779654552000,-500.0,8.219e-05,2]
[422936961,1779654552000,-500.0,8.219e-05,2]
[422936955,1779654552000,-500.0,8.219e-05,2]
[422936956,1779654552000,-500.0,8.219e-05,2]
[422936954,1779654552000,-500.0,8.219e-05,2]
[422936953,1779654552000,-500.0,8.219e-05,2]
[422936957,1779654552000,-500.0,8.219e-05,2]
[422936973,1779654555000,-598.62560346,8.219e-05,2]
[422936980,1779654555000,-259.93406536,8.491e-05,2]
[422936978,1779654555000,-500.0,8.491e-05,2]
[422936979,1779654555000,-500.0,8.491e-05,2]
[422936977,1779654555000,-500.0,8.491e-05,2]
[422936976,1779654555000,-600.0,8.382e-05,2]
[422936975,1779654555000,-201.31,8.219e-05,2]
[422936969,1779654555000,-500.0,8.219e-05,2]
[422936963,1779654555000,-136.22060797,8.219e-05,2]
[422936968,1779654555000,-500.0,8.219e-05,2]
[422936972,1779654555000,-500.0,8.219e-05,2]
[422936971,1779654555000,-500.0,8.219e-05,2]
[422936967,1779654555000,-500.0,8.219e-05,2]
[422936981,1779654555000,-500.0,8.491e-05,2]
[422936966,1779654555000,-500.0,8.219e-05,2]
[422936965,1779654555000,-578.72,8.219e-05,2]
[422936964,1779654555000,-500.0,8.219e-05,2]
[422936970,1779654555000,-500.0,8.219e-05,2]
[422936982,1779654555000,-500.0,8.491e-05,2]
[422936974,1779654555000,-500.0,8.219e-05,2]
[422936983,1779654555000,-500.0,8.491e-05,2]
[422936984,1779654555000,-500.0,8.491e-05,2]
[422937002,1779654555000,-500.0,8.492e-05,2]
[422937001,1779654555000,-500.0,8.492e-05,2]
[422937000,1779654555000,-500.0,8.492e-05,2]
[422936999,1779654555000,-272.49851076,8.491e-05,2]
[422936998,1779654555000,-500.0,8.491e-05,2]
[422936994,1779654555000,-500.0,8.491e-05,2]
[422936995,1779654555000,-500.0,8.491e-05,2]
[422936992,1779654555000,-500.0,8.491e-05,2]
[422936997,1779654555000,-500.0,8.491e-05,2]
[422936993,1779654555000,-300.0,8.491e-05,2]
[422936991,1779654555000,-500.0,8.491e-05,2]
[422936990,1779654555000,-500.0,8.491e-05,2]
[422936989,1779654555000,-500.0,8.491e-05,2]
[422936987,1779654555000,-500.0,8.491e-05,2]
[422936988,1779654555000,-500.0,8.491e-05,2]
[422936986,1779654555000,-317.740075,8.491e-05,2]
[422936996,1779654555000,-500.0,8.491e-05,2]
[422936985,1779654555000,-500.0,8.491e-05,2]
[422937020,1779654556000,-500.0,8.492e-05,2]
[422937016,1779654556000,-392.15518838,8.492e-05,2]
[422937017,1779654556000,-593.19,8.492e-05,2]
[422937019,1779654556000,-555.44,8.492e-05,2]
[422937022,1779654556000,-500.0,8.492e-05,2]
[422937024,1779654556000,-500.0,8.492e-05,2]
[422937021,1779654556000,-606.61164051,8.492e-05,2]
[422937025,1779654556000,-500.0,8.492e-05,2]
[422937018,1779654556000,-500.0,8.492e-05,2]
[422937026,1779654556000,-562.89,8.492e-05,2]
[422937023,1779654556000,-500.0,8.492e-05,2]
[422937015,1779654556000,-500.0,8.492e-05,2]
[422937005,1779654556000,-598.95,8.492e-05,2]
[422937014,1779654556000,-346.84154924,8.492e-05,2]
[422937013,1779654556000,-500.0,8.492e-05,2]
[422937011,1779654556000,-500.0,8.492e-05,2]
[422937010,1779654556000,-500.0,8.492e-05,2]
[422937004,1779654556000,-500.0,8.492e-05,2]
[422937008,1779654556000,-500.0,8.492e-05,2]
[422937009,1779654556000,-500.0,8.492e-05,2]
[422937007,1779654556000,-220.03925725,8.492e-05,2]
[422937006,1779654556000,-500.0,8.492e-05,2]
[422937003,1779654556000,-302.95576371,8.492e-05,2]
[422937028,1779654556000,-500.0,8.492e-05,2]
[422937012,1779654556000,-228.9,8.492e-05,2]
[422937027,1779654556000,-500.0,8.492e-05,2]
[422937040,1779654556000,-500.0,8.492e-05,2]
[422937030,1779654556000,-500.0,8.492e-05,2]
[422937054,1779654556000,-500.0,8.492e-05,2]
[422937029,1779654556000,-500.0,8.492e-05,2]
[422937055,1779654556000,-526.26,8.492e-05,2]
[422937053,1779654556000,-500.0,8.492e-05,2]
[422937051,1779654556000,-500.0,8.492e-05,2]
[422937052,1779654556000,-500.0,8.492e-05,2]
[422937050,1779654556000,-500.0,8.492e-05,2]
[422937048,1779654556000,-500.0,8.492e-05,2]
[422937045,1779654556000,-500.0,8.492e-05,2]
[422937047,1779654556000,-500.0,8.492e-05,2]
[422937042,1779654556000,-500.0,8.492e-05,2]
[422937044,1779654556000,-500.0,8.492e-05,2]
[422937049,1779654556000,-566.54,8.492e-05,2]
[422937043,1779654556000,-500.0,8.492e-05,2]
[422937041,1779654556000,-500.0,8.492e-05,2]
[422937039,1779654556000,-500.0,8.492e-05,2]
[422937032,1779654556000,-500.0,8.492e-05,2]
[422937037,1779654556000,-500.61446561,8.492e-05,2]
[422937038,1779654556000,-500.0,8.492e-05,2]
[422937036,1779654556000,-507.22184969,8.492e-05,2]
[422937034,1779654556000,-500.0,8.492e-05,2]
[422937035,1779654556000,-500.0,8.492e-05,2]
[422937033,1779654556000,-500.0,8.492e-05,2]
[422937046,1779654556000,-500.0,8.492e-05,2]
[422937031,1779654556000,-527.32461009,8.492e-05,2]
[422937071,1779654557000,-500.0,8.492e-05,2]
[422937074,1779654557000,-500.0,8.492e-05,2]
[422937073,1779654557000,-500.0,8.492e-05,2]
[422937075,1779654557000,-500.0,8.492e-05,2]
[422937080,1779654557000,-500.0,8.492e-05,2]
[422937076,1779654557000,-157.77350415,8.492e-05,2]
[422937079,1779654557000,-500.0,8.492e-05,2]
[422937078,1779654557000,-500.0,8.492e-05,2]
[422937070,1779654557000,-500.0,8.492e-05,2]
[422937082,1779654557000,-500.0,8.492e-05,2]
[422937077,1779654557000,-500.0,8.492e-05,2]
[422937067,1779654557000,-500.0,8.492e-05,2]
[422937057,1779654557000,-537.57,8.492e-05,2]
[422937069,1779654557000,-500.0,8.492e-05,2]
[422937065,1779654557000,-500.0,8.492e-05,2]
[422937066,1779654557000,-500.0,8.492e-05,2]
[422937064,1779654557000,-500.0,8.492e-05,2]
[422937063,1779654557000,-500.0,8.492e-05,2]
[422937062,1779654557000,-163.79444771,8.492e-05,2]
[422937061,1779654557000,-500.0,8.492e-05,2]
[422937059,1779654557000,-338.94794487,8.492e-05,2]
[422937060,1779654557000,-500.0,8.492e-05,2]
[422937056,1779654557000,-500.0,8.492e-05,2]
[422937058,1779654557000,-500.0,8.492e-05,2]
[422937083,1779654557000,-500.0,8.493e-05,2]
[422937068,1779654557000,-500.0,8.492e-05,2]
[422937086,1779654557000,-500.0,8.493e-05,2]
[422937072,1779654557000,-500.0,8.492e-05,2]
[422937085,1779654557000,-311.11,8.493e-05,2]
[422937084,1779654557000,-294.19,8.493e-05,2]
[422937109,1779654557000,-500.0,8.766e-05,2]
[422937111,1779654557000,-500.0,8.766e-05,2]
[422937110,1779654557000,-194.63,8.766e-05,2]
[422937107,1779654557000,-500.0,8.766e-05,2]
[422937108,1779654557000,-500.0,8.766e-05,2]
[422937106,1779654557000,-500.0,8.766e-05,2]
[422937104,1779654557000,-214.01,8.766e-05,2]
[422937105,1779654557000,-500.0,8.766e-05,2]
[422937103,1779654557000,-395.09,8.766e-05,2]
[422937102,1779654557000,-273.59,8.766e-05,2]
[422937100,1779654557000,-341.95,8.766e-05,2]
[422937098,1779654557000,-500.0,8.766e-05,2]
[422937101,1779654557000,-184.48,8.766e-05,2]
[422937093,1779654557000,-500.0,8.493e-05,2]
[422937081,1779654557000,-500.0,8.492e-05,2]
[422937089,1779654557000,-356.92,8.493e-05,2]
[422937088,1779654557000,-500.0,8.493e-05,2]
[422937087,1779654557000,-223.66111251,8.493e-05,2]
[422937099,1779654557000,-249.53,8.766e-05,2]
[422937091,1779654557000,-500.0,8.493e-05,2]
[422937090,1779654557000,-367.87,8.493e-05,2]
[422937094,1779654557000,-535.34,8.493e-05,2]
[422937095,1779654557000,-300.75,8.766e-05,2]
[422937096,1779654557000,-195.07,8.766e-05,2]
[422937097,1779654557000,-500.0,8.766e-05,2]
[422937092,1779654557000,-176.09,8.493e-05,2]
[422937116,1779654558000,-500.0,8.766e-05,2]
[422937113,1779654558000,-203.67,8.766e-05,2]
[422937112,1779654558000,-500.0,8.766e-05,2]
[422937114,1779654558000,-530.58,8.766e-05,2]
[422937118,1779654558000,-500.0,8.766e-05,2]
[422937123,1779654558000,-226.81284286,8.767e-05,2]
[422937115,1779654558000,-500.0,8.766e-05,2]
[422937122,1779654558000,-500.0,8.766e-05,2]
[422937121,1779654558000,-270.74,8.766e-05,2]
[422937120,1779654558000,-500.0,8.766e-05,2]
[422937119,1779654558000,-500.0,8.766e-05,2]
[422937117,1779654558000,-501.95,8.766e-05,2]
[422937138,1779654569000,-431.45,9.04e-05,2]
[422937136,1779654569000,-237.4,9.04e-05,2]
[422937135,1779654569000,-500.0,9.04e-05,2]
[422937134,1779654569000,-381.87630241,9.04e-05,2]
[422937133,1779654569000,-642.48,9.04e-05,2]
[422937130,1779654569000,-500.0,9.04e-05,2]
[422937129,1779654569000,-603.29,9.04e-05,2]
[422937132,1779654569000,-500.0,9.04e-05,2]
[422937131,1779654569000,-500.0,9.04e-05,2]
[422937127,1779654569000,-500.0,8.767e-05,2]
[422937126,1779654569000,-500.0,8.767e-05,2]
[422937124,1779654569000,-273.18715714,8.767e-05,2]
[422937125,1779654569000,-335.97,8.767e-05,2]
[422937137,1779654569000,-566.81,9.04e-05,2]
[422937128,1779654569000,-155.53,9.04e-05,2]
[422937139,1779654569000,-198.74,9.04e-05,2]
[422937151,1779654569000,-273.25304223,9.381e-05,7]
[422937141,1779654569000,-500.0,9.041e-05,2]
[422937142,1779654569000,-500.0,9.041e-05,2]
[422937143,1779654569000,-720.0,9.221e-05,2]
[422937144,1779654569000,-428.84476436,9.301e-05,7]
[422937146,1779654569000,-500.0,9.314e-05,2]
[422937145,1779654569000,-500.0,9.314e-05,2]
[422937147,1779654569000,-500.0,9.314e-05,2]
[422937148,1779654569000,-603.69,9.315e-05,2]
[422937149,1779654569000,-500.0,9.315e-05,2]
[422937150,1779654569000,-229.99,9.355e-05,2]
[422937156,1779654569000,-126.18320729,9.589e-05,2]
[422937153,1779654569000,-203.35,9.588e-05,2]
[422937154,1779654569000,-500.0,9.588e-05,2]
[422937152,1779654569000,-161.91725344,9.381e-05,7]
[422937155,1779654569000,-500.0,9.588e-05,2]
[422937140,1779654569000,-505.77,9.041e-05,2]
[422937157,1779654571000,-475.32679271,9.589e-05,2]
[422937158,1779654571000,-29.92603544,9.862e-05,2]
[422937159,1779654622000,-454.93396456,9.862e-05,2]
[422937164,1779654638000,-500.0,9.862e-05,2]
[422937165,1779654638000,-272.49851073,0.00010005,2]
[422937174,1779654638000,-204.0,0.00012218,2]
[422937167,1779654638000,-177.0,0.00010218,2]
[422937163,1779654638000,-500.0,8.219e-05,2]
[422937166,1779654638000,-500.0,0.00010136,2]
[422937169,1779654638000,-213.57423412,0.00010959,7]
[422937168,1779654638000,-321.97,0.0001041,2]
[422937171,1779654638000,-640.72270237,0.00010959,7]
[422937172,1779654638000,-854.29693649,0.00010959,7]
[422937173,1779654638000,-272.49851073,0.0001162,2]
[422937170,1779654638000,-427.14846825,0.00010959,7]
[422937175,1779654638000,-169.3695585,0.00012474,2]
[422937176,1779654638000,-207.69212999,0.00012493,3]
[422937188,1779654638000,-432.4180525,0.00013999,2]
[422937178,1779654638000,-2798.36,0.00012876,2]
[422937177,1779654638000,-351.43192912,0.00012875,2]
[422937192,1779654638000,-500.0,0.00013999,2]
[422937187,1779654638000,-500.0,0.00013999,2]
[422937190,1779654638000,-500.0,0.00013999,2]
[422937189,1779654638000,-500.0,0.00013999,2]
[422937185,1779654638000,-500.0,0.00013999,2]
[422937191,1779654638000,-500.0,0.00013999,2]
[422937184,1779654638000,-1000.0,0.00013699,2]
[422937183,1779654638000,-272.49851073,0.00013234,2]
[422937182,1779654638000,-600.0,0.00013133,2]
[422937181,1779654638000,-2901.4,0.00012876,2]
[422937180,1779654638000,-2901.4,0.00012876,2]
[422937186,1779654638000,-531.95384575,0.00013999,2]
[422937179,1779654638000,-2798.36,0.00012876,2]
[422937223,1779654639000,-151.0,0.00017108,2]
[422937225,1779654639000,-151.0,0.00017108,2]
[422937220,1779654639000,-151.0,0.00017108,2]
[422937221,1779654639000,-151.0,0.00017108,2]
[422937224,1779654639000,-151.0,0.00017108,2]
[422937222,1779654639000,-151.0,0.00017108,2]
[422937216,1779654639000,-151.0,0.00017108,2]
[422937226,1779654639000,-151.0,0.00017108,2]
[422937227,1779654639000,-151.0,0.00017108,2]
[422937229,1779654639000,-1000.0,0.00017479,2]
[422937236,1779654639000,-1996.89,0.0001863,2]
[422937228,1779654639000,-173.62196179,0.00017108,2]
[422937231,1779654639000,-456.6225987,0.00018073,2]
[422937232,1779654639000,-272.49851073,0.00018077,2]
[422937233,1779654639000,-285.0,0.00018218,2]
[422937234,1779654639000,-500.0,0.00018264,5]
[422937219,1779654639000,-151.0,0.00017108,2]
[422937235,1779654639000,-100000.0,0.00018527,2]
[422937237,1779654639000,-218762.1304249,0.00018641,2]
[422937240,1779654639000,-152.0,0.00019217,7]
[422937238,1779654639000,-1996.89,0.00018904,2]
[422937230,1779654639000,-162.0,0.00017973,3]
[422937239,1779654639000,-1996.89,0.00019178,2]
[422937214,1779654639000,-151.0,0.00017108,2]
[422937215,1779654639000,-151.0,0.00017108,2]
[422937193,1779654639000,-500.0,0.00013999,2]
[422937194,1779654639000,-500.0,0.00013999,2]
[422937195,1779654639000,-500.0,0.00013999,2]
[422937196,1779654639000,-37819.29238225,0.00014,2]
[422937197,1779654639000,-217.33496738,0.00014118,2]
[422937200,1779654639000,-160.0,0.00014441,2]
[422937198,1779654639000,-231.0,0.00014218,2]
[422937199,1779654639000,-160.0,0.00014434,2]
[422937202,1779654639000,-160.0,0.00014441,2]
[422937201,1779654639000,-161.73758927,0.00014441,2]
[422937218,1779654639000,-151.0,0.00017108,2]
[422937206,1779654639000,-864.0,0.0001589,2]
[422937203,1779654639000,-720.0,0.00014446,2]
[422937205,1779654639000,-47304.63315158,0.000155,2]
[422937208,1779654639000,-150.806,0.00016229,2]
[422937207,1779654639000,-258.0,0.00016218,2]
[422937209,1779654639000,-185.0,0.00016387,2]
[422937213,1779654639000,-151.0,0.00017108,2]
[422937210,1779654639000,-200.0,0.00016438,2]
[422937212,1779654639000,-151.0,0.00017108,2]
[422937211,1779654639000,-272.49851073,0.00016462,2]
[422937217,1779654639000,-151.0,0.00017108,2]
[422937204,1779654639000,-272.49851073,0.00014848,2]
[422937241,1779654639000,-1000.0,0.00019227,2]
[422937268,1779654639000,-151.0,0.00019791,2]
[422937243,1779654639000,-185.0,0.00019387,2]
[422937270,1779654639000,-151.0,0.00019791,2]
[422937272,1779654639000,-151.0,0.00019791,2]
[422937273,1779654639000,-151.0,0.00019791,2]
[422937274,1779654639000,-151.0,0.00019791,2]
[422937275,1779654639000,-267.273053,0.00019791,2]
[422937277,1779654639000,-151.0,0.00019791,2]
[422937276,1779654639000,-151.0,0.00019791,2]
[422937279,1779654639000,-151.0,0.00019791,2]
[422937280,1779654639000,-151.0,0.00019791,2]
[422937283,1779654639000,-151.0,0.00019791,2]
[422937285,1779654639000,-151.0,0.00019791,2]
[422937281,1779654639000,-194.965902,0.00019791,2]
[422937282,1779654639000,-151.0,0.00019791,2]
[422937284,1779654639000,-151.0,0.00019791,2]
[422937290,1779654639000,-1430.60036947,0.00019791,30]
[422937286,1779654639000,-151.0,0.00019791,2]
[422937289,1779654639000,-630.324,0.00019791,30]
[422937287,1779654639000,-220.300721,0.00019791,2]
[422937288,1779654639000,-727109.04941781,0.00019791,30]
[422937291,1779654639000,-1763.10572972,0.00019791,30]
[422937292,1779654639000,-1657.40866651,0.00019791,30]
[422937271,1779654639000,-151.0,0.00019791,2]
[422937269,1779654639000,-151.0,0.00019791,2]
[422937278,1779654639000,-151.0,0.00019791,2]
[422937264,1779654639000,-1000.0,0.0001978,5]
[422937245,1779654639000,-6322.2530949,0.00019684,2]
[422937242,1779654639000,-244.0,0.00019227,2]
[422937244,1779654639000,-1996.89,0.00019452,2]
[422937247,1779654639000,-272.49851073,0.00019691,2]
[422937267,1779654639000,-151.0,0.00019791,2]
[422937251,1779654639000,-540.4888376,0.00019699,5]
[422937249,1779654639000,-1410.6853455,0.00019699,2]
[422937253,1779654639000,-500.0,0.00019717,2]
[422937252,1779654639000,-314.766447,0.00019702,2]
[422937250,1779654639000,-162.380719,0.00019699,5]
[422937254,1779654639000,-1000.0,0.0001972,5]
[422937248,1779654639000,-217.33496738,0.00019692,2]
[422937259,1779654639000,-161.79,0.0001975,2]
[422937256,1779654639000,-150.79,0.0001974,2]
[422937265,1779654639000,-150.79,0.0001979,2]
[422937266,1779654639000,-164.644067,0.00019791,2]
[422937261,1779654639000,-1548.259683,0.0001976,5]
[422937262,1779654639000,-154.22,0.00019763,2]
[422937246,1779654639000,-1689.9064054,0.00019684,2]
[422937260,1779654639000,-1000.0,0.0001976,5]
[422937263,1779654639000,-1000.0,0.0001978,5]
[422937258,1779654639000,-161.42,0.00019742,2]
[422937255,1779654639000,-1996.89,0.00019726,2]
[422937257,1779654639000,-1000.0,0.0001974,5]
[422937435,1779654644000,-228220.93039622,0.00019791,30]
[422937491,1779654647000,-10339.26036976,0.00019791,30]
[422937492,1779654677000,500.0,8.219e-05,2]
[422937493,1779654734000,-500.0,0.00013999,2]
[422937496,1779654980000,-165.177818,6.871e-05,2]
[422937497,1779655033000,-300.0,8.218e-05,2]
[422937498,1779655086000,-300.0,8.218e-05,2]
[422937500,1779655140000,-888.6030858,8.218e-05,2]
[422937501,1779655158000,-303.719241,8.218e-05,2]
[422937502,1779655177000,-7.6776732,8.218e-05,2]
[422937503,1779655230000,-300.0,8.218e-05,2]
[422937504,1779655284000,-500.0,8.218e-05,2]
[422937505,1779655337000,-500.0,8.218e-05,2]
[422937506,1779655391000,-500.0,8.218e-05,2]
[422937507,1779655556000,-368.10508635,8.218e-05,2]
[422937508,1779655578000,176.197614,4.494e-05,2]
[422937510,1779655637000,-150.0,8.219e-05,2]
[422937511,1779655637000,-138.41564468,8.219e-05,2]
[422937512,1779655644000,-230.14257791,8.219e-05,2]
[422937514,1779655653000,-207.6722316,8.219e-05,2]
[422937513,1779655653000,-131.44177741,8.219e-05,2]
[422937515,1779655757000,-500.0,8.219e-05,2]
[422937532,1779655767000,-1000.0,8.219e-05,2]
[422937528,1779655767000,-500.53331707,8.219e-05,2]
[422937529,1779655767000,-567.04795709,8.219e-05,2]
[422937527,1779655767000,-500.0,8.218e-05,2]
[422937526,1779655767000,-500.0,8.218e-05,2]
[422937524,1779655767000,-500.0,8.218e-05,2]
[422937521,1779655767000,-500.0,8.218e-05,2]
[422937523,1779655767000,-500.0,8.218e-05,2]
[422937530,1779655767000,-634.24,8.219e-05,2]
[422937519,1779655767000,-500.0,8.218e-05,2]
[422937520,1779655767000,-548.11591174,8.218e-05,2]
[422937517,1779655767000,-500.0,8.218e-05,2]
[422937516,1779655767000,-500.0,8.218e-05,2]
[422937518,1779655767000,-500.0,8.218e-05,2]
[422937522,1779655767000,-500.0,8.218e-05,2]
[422937531,1779655767000,-590.0,8.219e-05,2]
[422937525,1779655767000,-500.0,8.218e-05,2]
[422937533,1779655767000,-602.06,8.219e-05,2]
[422937534,1779655767000,-500.17534177,8.219e-05,2]
[422937548,1779655767000,-500.0,8.219e-05,2]
[422937546,1779655767000,-500.0,8.219e-05,2]
[422937549,1779655767000,-500.0,8.219e-05,2]
[422937547,1779655767000,-500.0,8.219e-05,2]
[422937545,1779655767000,-500.0,8.219e-05,2]
[422937543,1779655767000,-500.0,8.219e-05,2]
[422937544,1779655767000,-500.0,8.219e-05,2]
[422937550,1779655767000,-500.0,8.219e-05,2]
[422937542,1779655767000,-500.0,8.219e-05,2]
[422937537,1779655767000,-618.85540538,8.219e-05,2]
[422937539,1779655767000,-500.0,8.219e-05,2]
[422937540,1779655767000,-500.0,8.219e-05,2]
[422937538,1779655767000,-500.2002204,8.219e-05,2]
[422937536,1779655767000,-599.01,8.219e-05,2]
[422937541,1779655767000,-500.0,8.219e-05,2]
[422937535,1779655767000,-500.22864411,8.219e-05,2]
[422937566,1779655768000,-500.0,8.219e-05,2]
[422937564,1779655768000,-500.0,8.219e-05,2]
[422937565,1779655768000,-500.0,8.219e-05,2]
[422937561,1779655768000,-500.0,8.219e-05,2]
[422937571,1779655768000,-500.0,8.219e-05,2]
[422937567,1779655768000,-500.0,8.219e-05,2]
[422937569,1779655768000,-500.0,8.219e-05,2]
[422937563,1779655768000,-500.0,8.219e-05,2]
[422937568,1779655768000,-500.0,8.219e-05,2]